fUST/lending_fUST_20260129
["ID","MTS","AMOUNT","RATE_DAILY","PERIOD"]
[403962417,1769695747227,-300.0,0.00010846,2]
[403962418,1769695747258,-300.0,0.00010846,2]
[403962419,1769695747288,-300.0,0.00010846,2]
[403962420,1769695747319,-300.0,0.00010846,2]
[403962421,1769695747352,-300.0,0.00010846,2]
[403962422,1769695747383,-300.0,0.00010846,2]
[403962423,1769695747415,-300.0,0.00010846,2]
[403962424,1769695747446,-300.0,0.00010846,2]
[403962425,1769695747478,-300.0,0.00010846,2]
[403962426,1769695747510,-300.0,0.00010846,2]
[403962427,1769695747541,-300.0,0.00010846,2]
[403962428,1769695747573,-300.0,0.00010846,2]
[403962429,1769695747607,-300.0,0.00010846,2]
[403962430,1769695758457,1000.01,0.00010846,2]
[403962431,1769695758482,3999.99,0.00010846,2]
[403962443,1769695762632,-1107.07830834,0.00010849,2]
[403962444,1769695766822,5000.0,0.00010849,2]
[403962446,1769695778162,-8227.28858005,0.0001085,2]
[403962447,1769695778259,-10000.01,0.0001085,2]
[403962448,1769695778392,-10000.01,0.0001085,2]
[403962449,1769695784051,-10000.01,0.00010742,2]
[403962450,1769695784186,-10000.01,0.00010742,2]
[403962451,1769695790213,-10000.01,0.00010635,2]
[403962452,1769695790319,-10000.01,0.00010635,2]
[403962453,1769695824265,-10000.01,9.677e-05,2]
[403962454,1769695825287,-500.0,9.677e-05,2]
[403962455,1769695829258,-332.89401969,9.677e-05,2]
[403962456,1769695830652,-279.42094264,9.677e-05,2]
[403962457,1769695831575,-10000.01,9.677e-05,2]
[403962458,1769695831704,-10000.01,9.677e-05,2]
[403962459,1769695831828,-10000.01,9.677e-05,2]
[403962463,1769695832011,-2784.29042927,9.677e-05,2]
[403962479,1769695832170,-250.04889373,9.838e-05,2]
[403962486,1769695836764,-29.03088212,9.838e-05,2]
[403962487,1769695836788,-300.0,9.869e-05,2]
[403962488,1769695836811,-22.77325592,9.869e-05,2]
[403962527,1769695838096,-277.22674408,9.869e-05,2]
[403962529,1769695838105,-300.0,9.869e-05,2]
[403962531,1769695838115,-300.0,9.869e-05,2]
[403962533,1769695838124,-300.0,9.869e-05,2]
[403962535,1769695838133,-300.0,9.869e-05,2]
[403962537,1769695838142,-300.0,9.869e-05,2]
[403962539,1769695838152,-300.0,9.869e-05,2]
[403962541,1769695838161,-300.0,9.869e-05,2]
[403962543,1769695838171,-300.0,9.869e-05,2]
[403962545,1769695838180,-300.0,9.869e-05,2]
[403962547,1769695838189,-300.0,9.869e-05,2]
[403962549,1769695838198,-300.0,9.869e-05,2]
[403962551,1769695838212,-300.0,9.869e-05,2]
[403962553,1769695838221,-300.0,9.869e-05,2]
[403962556,1769695838231,-274.54,0.0001,2]
[403962557,1769695838240,-274.54,0.000104,2]
[403962559,1769695838249,-300.0,0.00010528,2]
[403962561,1769695838258,-300.0,0.00010528,2]
[403962563,1769695838267,-287.0,0.00010528,2]
[403962565,1769695838275,-568.0,0.00010528,2]
[403962567,1769695838284,-1200.0,0.00010528,2]
[403962569,1769695838293,-11539.63595232,0.00010529,2]
[403962571,1769695838302,-37908.87084157,0.00010635,2]
[403962846,1769695840961,-3e-08,0.00010635,2]
[403962877,1769695841239,-577.78357507,0.00010635,2]
[403963336,1769695976255,5000.0,9.804e-05,2]
[403963337,1769695979799,-300.0,9.839e-05,2]
[403963338,1769695995094,-5000.0,0.00010528,2]
[403963339,1769696001295,0.01,0.00010528,2]
[403963340,1769696001320,4999.99,0.00010528,2]
[403963341,1769696009185,5000.0,0.00010528,2]
[403963342,1769696010455,-300.0,0.00010633,2]
[403963343,1769696024762,5000.0,0.00010633,2]
[403963344,1769696026178,-500.0,0.00010634,2]
[403963345,1769696026209,-500.0,0.00010634,2]
[403963346,1769696026239,-500.0,0.00010634,2]
[403963347,1769696026269,-500.0,0.00010634,2]
[403963348,1769696026299,-500.0,0.00010634,2]
[403963349,1769696026329,-650.0,0.00010634,2]
[403963350,1769696026366,-500.0,0.00010634,2]
[403963351,1769696026396,-500.0,0.00010634,2]
[403963352,1769696026427,-500.0,0.00010634,2]
[403963353,1769696026458,-200.01,0.00010634,2]
[403963354,1769696026662,-299.99,0.00010634,2]
[403963355,1769696026691,-500.0,0.00010634,2]
[403963356,1769696026723,-500.0,0.00010634,2]
[403963357,1769696026755,-600.71639316,0.00010634,2]
[403963358,1769696026785,-500.0,0.00010634,2]
[403963359,1769696026814,-500.0,0.00010634,2]
[403963360,1769696026844,-500.0,0.00010634,2]
[403963361,1769696026875,-500.0,0.00010634,2]
[403963362,1769696026906,-500.0,0.00010634,2]
[403963363,1769696026938,-500.0,0.00010634,2]
[403963364,1769696027230,-500.0,0.00010634,2]
[403963365,1769696027261,-500.0,0.00010634,2]
[403963366,1769696027291,-500.0,0.00010634,2]
[403963367,1769696027322,-500.0,0.00010634,2]
[403963368,1769696027352,-500.0,0.00010634,2]
[403963369,1769696027384,-500.0,0.00010634,2]
[403963370,1769696027416,-500.0,0.00010634,2]
[403963371,1769696027463,-500.0,0.00010634,2]
[403963372,1769696027496,-500.0,0.00010634,2]
[403963373,1769696027529,-500.0,0.00010634,2]
[403963374,1769696027735,-500.0,0.00010634,2]
[403963375,1769696027768,-500.0,0.00010634,2]
[403963376,1769696027800,-500.0,0.00010634,2]
[403963377,1769696027832,-500.0,0.00010634,2]
[403963378,1769696027865,-500.0,0.00010634,2]
[403963379,1769696027896,-500.0,0.00010634,2]
[403963380,1769696027928,-500.0,0.00010634,2]
[403963381,1769696027960,-500.0,0.00010634,2]
[403963382,1769696027991,-500.0,0.00010634,2]
[403963383,1769696028026,-500.0,0.00010634,2]
[403963384,1769696028118,-500.0,0.00010634,2]
[403963385,1769696028150,-500.0,0.00010634,2]
[403963386,1769696028181,-500.0,0.00010634,2]
[403963387,1769696028212,-500.0,0.00010634,2]
[403963388,1769696028243,-500.0,0.00010634,2]
[403963389,1769696028276,-500.0,0.00010634,2]
[403963390,1769696028307,-500.0,0.00010634,2]
[403963391,1769696028338,-350.0,0.00010634,2]
[403963392,1769696028369,-500.0,0.00010634,2]
[403963393,1769696028400,-500.0,0.00010634,2]
[403963394,1769696028715,-500.0,0.00010634,2]
[403963395,1769696028747,-500.0,0.00010634,2]
[403963396,1769696028776,-191.48062914,0.00010634,2]
[403963397,1769696028808,-296.32429182,0.00010634,2]
[403963398,1769696028840,-500.0,0.00010634,2]
[403963399,1769696028869,-500.0,0.00010634,2]
[403963400,1769696028900,-500.0,0.00010634,2]
[403963401,1769696028930,-500.0,0.00010634,2]
[403963402,1769696028960,-500.0,0.00010634,2]
[403963403,1769696028991,-500.0,0.00010634,2]
[403963404,1769696029022,-500.0,0.00010634,2]
[403963405,1769696032213,-500.0,0.00010634,2]
[403963406,1769696032244,-500.0,0.00010634,2]
[403963407,1769696032275,-500.0,0.00010634,2]
[403963408,1769696032305,-500.0,0.00010634,2]
[403963409,1769696032338,-500.0,0.00010634,2]
[403963410,1769696032370,-500.0,0.00010634,2]
[403963411,1769696032402,-500.0,0.00010634,2]
[403963412,1769696032434,-500.0,0.00010634,2]
[403963413,1769696032466,-500.0,0.00010634,2]
[403963414,1769696032500,-500.0,0.00010634,2]
[403963415,1769696032585,-310.96211755,0.00010634,2]
[403963416,1769696032616,-500.0,0.00010634,2]
[403963417,1769696032648,-500.0,0.00010634,2]
[403963418,1769696032682,-500.0,0.00010634,2]
[403963419,1769696032713,-500.0,0.00010634,2]
[403963420,1769696032745,-500.0,0.00010634,2]
[403963421,1769696032776,-500.0,0.00010634,2]
[403963422,1769696032806,-500.0,0.00010634,2]
[403963423,1769696032836,-500.0,0.00010634,2]
[403963424,1769696032866,-500.0,0.00010634,2]
[403963425,1769696032989,-529.51876186,0.00010634,2]
[403963426,1769696033102,4095.10471505,0.00010528,2]
[403963427,1769696212465,767.4656689,9.614e-05,2]
[403963428,1769696215351,-1000.0,0.00010534,2]
[403963429,1769696229867,375.6315234,9.718e-05,2]
[403963430,1769696230502,-5000.0,0.00010535,2]
[403963431,1769696243496,0.01,0.00010535,2]
[403963432,1769696243522,4999.99,0.00010535,2]
[403963433,1769696246468,251.88,0.000105,2]
[403963434,1769696247835,323.25,0.000105,2]
[403963435,1769696251783,1053.39504094,0.00010535,2]
[403963436,1769696260441,679.04189717,0.00010535,2]
[403963437,1769696261299,-280.9201345,0.00010535,2]
[403963438,1769696261328,-256.64624404,0.00010535,2]
[403963439,1769696268494,5000.0,0.00010535,2]
[403963440,1769696277081,4571.91894507,0.00010535,2]
[403963441,1769696283453,300.0,0.00010632,2]
[403963442,1769696284936,673.97121619,0.00010633,2]
[403963444,1769696308631,-5000.0,0.00010633,2]
[403963445,1769696316171,0.01,0.00010633,2]
[403963446,1769696316198,4999.99,0.00010633,2]
[403963447,1769696331493,570.63,0.00034711,120]
[403963448,1769696331739,570.63,0.00034711,120]
[403963449,1769696332007,570.63,0.00034711,120]
[403963450,1769696332238,570.63,0.00034711,120]
[403963451,1769696332475,570.63,0.00034711,120]
[403963452,1769696332704,570.63,0.00034711,120]
[403963453,1769696332950,570.63,0.00034711,120]
[403963454,1769696333203,570.63,0.00034711,120]
[403963455,1769696333460,570.63,0.00034711,120]
[403963456,1769696333706,570.63,0.00034711,120]
[403963457,1769696333974,570.63,0.00034711,120]
[403963458,1769696334235,570.63,0.00034711,120]
[403963459,1769696334474,570.63,0.00034711,120]
[403963460,1769696334709,570.63,0.00034711,120]
[403963461,1769696334942,570.63,0.00034711,120]
[403963462,1769696335204,570.63,0.00034711,120]
[403963463,1769696335441,570.63,0.00034711,120]
[403963464,1769696335680,570.63,0.00034711,120]
[403963465,1769696335912,570.63,0.00034711,120]
[403963466,1769696336138,570.63,0.00034711,120]
[403963467,1769696336361,570.63,0.00034711,120]
[403963468,1769696336608,570.63,0.00034711,120]
[403963469,1769696336830,570.63,0.00034711,120]
[403963470,1769696337056,570.83340758,0.00034711,120]
[403963471,1769696369504,-300.0,0.00010632,2]
[403963472,1769696402767,300.0,0.00010637,2]
[403963473,1769696405198,569.0,0.00010638,2]
[403963474,1769696411027,1200.0,0.00010637,2]
[403963475,1769696417876,-500.0,0.00010638,2]
[403963476,1769696417910,-500.0,0.00010638,2]
[403963477,1769696417945,-500.0,0.00010638,2]
[403963478,1769696417982,-500.0,0.00010638,2]
[403963479,1769696418017,-500.0,0.00010638,2]
[403963480,1769696418061,-500.0,0.00010638,2]
[403963481,1769696418094,-500.0,0.00010638,2]
[403963482,1769696418128,-500.0,0.00010638,2]
[403963483,1769696418160,-500.0,0.00010638,2]
[403963484,1769696418198,-500.0,0.00010638,2]
[403963485,1769696418577,-500.0,0.00010638,2]
[403963486,1769696418610,-500.0,0.00010638,2]
[403963487,1769696418645,-500.0,0.00010638,2]
[403963488,1769696418677,-500.0,0.00010638,2]
[403963489,1769696418710,-478.99579084,0.00010638,2]
[403963490,1769696418741,-172.29017093,0.00010638,2]
[403963491,1769696418775,-530.0,0.00010638,2]
[403963492,1769696418807,-500.0,0.00010638,2]
[403963493,1769696418839,-500.0,0.00010638,2]
[403963494,1769696418870,-500.0,0.00010638,2]
[403963495,1769696418904,-312.71211919,0.00010638,2]
[403963496,1769696419042,-12.01383808,0.00010638,2]
[403963497,1769696419074,-500.0,0.00010638,2]
[403963498,1769696419106,-500.0,0.00010638,2]
[403963499,1769696419136,-500.0,0.00010638,2]
[403963500,1769696419167,-500.0,0.00010638,2]
[403963501,1769696419201,-500.0,0.00010638,2]
[403963502,1769696419231,-500.0,0.00010638,2]
[403963503,1769696419261,-500.0,0.00010638,2]
[403963504,1769696419291,-500.0,0.00010638,2]
[403963505,1769696419320,-500.0,0.00010638,2]
[403963506,1769696419349,-456.09195334,0.00010638,2]
[403963507,1769696419467,-500.0,0.00010638,2]
[403963508,1769696419498,-500.0,0.00010638,2]
[403963509,1769696419528,-500.0,0.00010638,2]
[403963510,1769696419560,-500.0,0.00010638,2]
[403963511,1769696419592,-500.0,0.00010638,2]
[403963512,1769696419624,-500.0,0.00010638,2]
[403963513,1769696419657,-500.0,0.00010638,2]
[403963514,1769696419693,-500.0,0.00010638,2]
[403963515,1769696419726,-885.66264668,0.00010639,2]
[403963516,1769696479462,10000.01,9.706e-05,2]
[403963517,1769696479487,10000.01,9.706e-05,2]
[403963518,1769696484786,-1290.12810757,9.706e-05,2]
[403963519,1769696488746,-225.54373952,9.706e-05,2]
[403963520,1769696491594,-631.42467637,9.706e-05,2]
[403963521,1769696494143,-199.67986037,9.706e-05,2]
[403963522,1769696495615,-1158.25539998,9.706e-05,2]
[403963523,1769696495679,-10000.01,9.706e-05,2]
[403963524,1769696495831,-4561.06087419,9.706e-05,2]
[403963525,1769696496257,197.38282006,9.609e-05,2]
[403963526,1769696496283,877.88825162,9.609e-05,2]
[403963527,1769696496307,2482.34938428,9.609e-05,2]
[403963528,1769696510798,-306.954,0.00010429,2]
[403963529,1769696520126,2440.36393993,0.00010429,2]
[403963531,1769696526064,-1729.73544546,0.00010533,2]
[403963532,1769696535613,5000.0,0.00010533,2]
[403963533,1769696558034,5000.0,0.00010538,2]
[403963534,1769696580835,5000.0,0.00010538,2]
[403963536,1769696583543,0.01,0.00010537,2]
[403963537,1769696583571,299.99,0.00010537,2]
[403963538,1769696592936,680.99683053,0.00010399,2]
[403963539,1769696594367,251.88,0.000105,2]
[403963546,1769696595320,355.57,0.000105,2]
[403963547,1769696603345,5000.0,0.00010538,2]
[403963548,1769696625940,3411.57316947,0.00010538,2]
[403963549,1769696625972,1588.42683053,0.00010538,2]
[403963550,1769696643371,300.0,0.00010537,2]
[403963551,1769696648342,5000.0,0.00010538,2]
[403963552,1769696670784,3111.58316947,0.00010538,2]
[403963553,1769696670809,1888.41683053,0.00010538,2]
[403963554,1769696693947,5000.0,0.00010538,2]
[403963555,1769696702211,300.0,0.00010537,2]
[403963556,1769696702974,300.0,0.00010537,2]
[403963557,1769696703404,300.0,0.00010537,2]
[403963558,1769696703458,300.0,0.00010537,2]
[403963559,1769696712402,1200.0,0.00010537,2]
[403963560,1769696716509,711.59316947,0.00010538,2]
[403963561,1769696716538,4288.40683053,0.00010538,2]
[403963562,1769696739169,5000.0,0.00010538,2]
[403963564,1769696761947,711.60316947,0.00010538,2]
[403963565,1769696761979,4288.39683053,0.00010538,2]
[403963566,1769696762904,300.0,0.00010537,2]
[403963567,1769696784868,5000.0,0.00010538,2]
[403963569,1769696807934,411.61316947,0.00010538,2]
[403963570,1769696807963,4588.38683053,0.00010538,2]
[403963573,1769696823770,-300.0,0.00010537,2]
[403963575,1769696824503,-4011.04159364,0.00010538,2]
[403963577,1769696826880,-10000.01,0.00010538,2]
[403963578,1769696827027,-10000.01,0.00010538,2]
[403963579,1769696827164,-10000.01,0.00010538,2]
[403963580,1769696833041,-10000.01,0.00010433,2]
[403963605,1769696904410,-800.0,9.792e-05,2]
[403963606,1769696904805,-188.7399709,0.0001,2]
[403963607,1769696917464,1766.92174569,6.546e-05,2]
[403963608,1769696918699,-335.27133247,0.0001,2]
[403963609,1769696919962,-4819.39594142,0.0001,2]
[403963610,1769696920290,-2665.24534531,0.0001,2]
[403963611,1769696935403,-500.0,0.00010329,2]
[403963617,1769696950707,-300.0,0.00010432,2]
[403963618,1769696966465,-8594.30637147,0.00010433,2]
[403963619,1769696966570,-10000.01,0.00010433,2]
[403963620,1769696966697,-10000.01,0.00010433,2]
[403963621,1769696966838,-10000.01,0.00010433,2]
[403963622,1769696966993,-10000.01,0.00010433,2]
[403963623,1769696967129,-10000.01,0.00010433,2]
[403963657,1769697032076,-1054.42585719,0.00010225,2]
[403963683,1769697038141,-3945.57414281,0.00010225,2]
[403963684,1769697038151,-291.54348444,0.00010328,2]
[403963686,1769697038258,-195.2373228,0.00010328,2]
[403963687,1769697038267,-209.0,0.00010432,2]
[403963688,1769697038276,-300.0,0.00010432,2]
[403963689,1769697038286,-566.0,0.00010432,2]
[403963690,1769697038295,-1200.0,0.00010432,2]
[403963691,1769697038310,-2966.2129171,0.00010439,2]
[403963692,1769697038320,-1526.16027622,0.00010439,2]
[403963693,1769697038330,-2365988.92840636,0.00010538,2]
[403963694,1769697038341,-12223.04805184,0.00010538,2]
[403963695,1769697038351,-12223.04805184,0.00010538,2]
[403963696,1769697038361,-12223.04805184,0.00010538,2]
[403963697,1769697038370,-12223.04805184,0.00010538,2]
[403963698,1769697038380,-12223.04805184,0.00010538,2]
[403963699,1769697038389,-282.55326089,0.00010539,2]
[403963700,1769697038399,-425.26314551,0.00010618,2]
[403963701,1769697038409,-418.00759788,0.00010641,2]
[403963702,1769697038419,-500.0,0.00010641,2]
[403963703,1769697038428,-614.10312379,0.00010641,2]
[403963704,1769697038438,-500.0,0.00010641,2]
[403963705,1769697038447,-500.0,0.00010641,2]
[403963706,1769697038457,-500.0,0.00010641,2]
[403963707,1769697038467,-500.0,0.00010641,2]
[403963708,1769697038477,-500.0,0.00010641,2]
[403963709,1769697038490,-500.0,0.00010641,2]
[403963710,1769697038499,-500.0,0.00010641,2]
[403963711,1769697038509,-500.0,0.00010641,2]
[403963712,1769697038519,-500.0,0.00010641,2]
[403963713,1769697038528,-500.0,0.00010641,2]
[403963714,1769697038537,-500.0,0.00010641,2]
[403963715,1769697038547,-269.46111852,0.00010641,2]
[403963716,1769697038561,-500.0,0.00010641,2]
[403963717,1769697038570,-500.0,0.00010641,2]
[403963718,1769697038580,-500.0,0.00010641,2]
[403963719,1769697038590,-500.0,0.00010641,2]
[403963720,1769697038599,-500.0,0.00010641,2]
[403963721,1769697038609,-500.0,0.00010641,2]
[403963722,1769697038619,-500.0,0.00010641,2]
[403963723,1769697038629,-500.0,0.00010641,2]
[403963724,1769697038639,-500.0,0.00010641,2]
[403963725,1769697038649,-500.0,0.00010641,2]
[403963726,1769697038662,-500.0,0.00010641,2]
[403963727,1769697038672,-500.0,0.00010641,2]
[403963728,1769697038682,-500.0,0.00010641,2]
[403963729,1769697038692,-500.0,0.00010641,2]
[403963730,1769697038702,-500.0,0.00010641,2]
[403963731,1769697038712,-500.0,0.00010641,2]
[403963732,1769697038722,-500.0,0.00010641,2]
[403963733,1769697038731,-500.0,0.00010641,2]
[403963734,1769697038741,-500.0,0.00010641,2]
[403963735,1769697038750,-500.0,0.00010641,2]
[403963736,1769697038759,-500.0,0.00010641,2]
[403963737,1769697038769,-500.0,0.00010641,2]
[403963738,1769697038778,-500.0,0.00010641,2]
[403963739,1769697038787,-500.0,0.00010641,2]
[403963740,1769697038797,-500.0,0.00010641,2]
[403963741,1769697038811,-500.0,0.00010641,2]
[403963742,1769697038821,-344.31080171,0.00010641,2]
[403963743,1769697038831,-500.0,0.00010641,2]
[403963744,1769697038842,-500.0,0.00010641,2]
[403963745,1769697038852,-500.0,0.00010641,2]
[403963746,1769697038862,-500.0,0.00010641,2]
[403963747,1769697038872,-500.0,0.00010641,2]
[403963748,1769697038882,-500.0,0.00010641,2]
[403963749,1769697038891,-204.15072793,0.00010641,2]
[403963750,1769697038901,-500.0,0.00010641,2]
[403963751,1769697038912,-500.0,0.00010641,2]
[403963752,1769697038921,-500.0,0.00010641,2]
[403963753,1769697038932,-500.0,0.00010641,2]
[403963754,1769697038941,-500.0,0.00010641,2]
[403963755,1769697038951,-500.0,0.00010641,2]
[403963756,1769697038960,-500.0,0.00010641,2]
[403963757,1769697038970,-500.0,0.00010641,2]
[403963758,1769697038980,-500.0,0.00010641,2]
[403963759,1769697038990,-500.0,0.00010641,2]
[403963760,1769697039003,-500.0,0.00010641,2]
[403963761,1769697039013,-500.0,0.00010641,2]
[403963762,1769697039023,-500.0,0.00010641,2]
[403963763,1769697039033,-500.0,0.00010641,2]
[403963764,1769697039042,-500.0,0.00010641,2]
[403963765,1769697039057,-500.0,0.00010641,2]
[403963766,1769697039067,-500.0,0.00010641,2]
[403963767,1769697039077,-500.0,0.00010641,2]
[403963768,1769697039087,-500.0,0.00010641,2]
[403963769,1769697039097,-500.0,0.00010641,2]
[403963770,1769697039107,-500.0,0.00010641,2]
[403963771,1769697039117,-500.0,0.00010641,2]
[403963772,1769697039127,-500.0,0.00010641,2]
[403963773,1769697039136,-500.0,0.00010641,2]
[403963774,1769697039147,-500.0,0.00010641,2]
[403963775,1769697039158,-500.0,0.00010641,2]
[403963776,1769697039168,-500.0,0.00010641,2]
[403963777,1769697039178,-500.0,0.00010641,2]
[403963778,1769697039188,-500.0,0.00010641,2]
[403963779,1769697039198,-500.0,0.00010641,2]
[403963780,1769697039208,-500.0,0.00010641,2]
[403963781,1769697039217,-500.0,0.00010641,2]
[403963782,1769697039227,-500.0,0.00010641,2]
[403963783,1769697039237,-500.0,0.00010641,2]
[403963784,1769697039247,-500.0,0.00010641,2]
[403963785,1769697039258,-500.0,0.00010641,2]
[403963786,1769697039268,-500.0,0.00010641,2]
[403963787,1769697039278,-257.34611167,0.00010641,2]
[403963788,1769697039288,-500.0,0.00010641,2]
[403963789,1769697039298,-205.19232547,0.00010641,2]
[403963790,1769697039312,-500.0,0.00010641,2]
[403963791,1769697039322,-500.0,0.00010641,2]
[403963792,1769697039332,-500.0,0.00010641,2]
[403963793,1769697039342,-500.0,0.00010641,2]
[403963794,1769697039352,-500.0,0.00010641,2]
[403963795,1769697039363,-500.0,0.00010641,2]
[403963796,1769697039375,-500.0,0.00010641,2]
[403963797,1769697039386,-405.21463204,0.00010641,2]
[403963798,1769697039397,-500.0,0.00010641,2]
[403963799,1769697039407,-600.0,0.00010739,2]
[403963800,1769697039417,-274.54,0.000108,2]
[403963801,1769697039427,-1000.0,0.00010849,2]
[403963802,1769697039437,-300.0,0.00010956,2]
[403963803,1769697039447,-300.0,0.00010956,2]
[403963804,1769697039457,-300.0,0.00010956,2]
[403963805,1769697039468,-300.0,0.00010956,2]
[403963806,1769697039478,-300.0,0.00010956,2]
[403963807,1769697039490,-300.0,0.00010956,2]
[403963808,1769697039500,-300.0,0.00010956,2]
[403963809,1769697039509,-300.0,0.00010956,2]
[403963810,1769697039519,-300.0,0.00010956,2]
[403963811,1769697039530,-300.0,0.00010956,2]
[403963812,1769697039540,-300.0,0.00010956,2]
[403963813,1769697039550,-300.0,0.00010956,2]
[403963814,1769697039564,-300.0,0.00010956,2]
[403963815,1769697039574,-300.0,0.00010956,2]
[403963816,1769697039584,-300.0,0.00010956,2]
[403963817,1769697039594,-293.5498943,0.00010959,2]
[403963818,1769697039762,-187.10899516,0.00010959,2]
[403963819,1769697039771,-302.04259235,0.00011,2]
[403963820,1769697039781,-151.0,0.00011,2]
[403963821,1769697039790,-151.0,0.00011,2]
[403963822,1769697039800,-624.31,0.000111,2]
[403963823,1769697039810,-274.54,0.000112,2]
[403963824,1769697039820,-420.0,0.0001147,2]
[403963825,1769697039830,-1680.0,0.00011475,2]
[403963826,1769697039839,-155.315,0.00011591,2]
[403963827,1769697039849,-274.54,0.000116,2]
[403963828,1769697039858,-1526.16027621,0.00011657,2]
[403963829,1769697039868,-720.0,0.00011812,2]
[403963830,1769697039877,-20000.02,0.0001194,2]
[403963831,1769697039886,-2000.0,0.00012,2]
[403963833,1769697039896,-5827.678612,0.00012,3]
[403963834,1769697039905,-3726.54849535,0.00012,5]
[403963835,1769697039915,-500.0,0.00012,2]
[403963836,1769697039924,-313.71429487,0.00012057,2]
[403963837,1769697039933,-1168.96811233,0.00012057,2]
[403963838,1769697039942,-274.54,0.000121,2]
[403963839,1769697039951,-500.0,0.00012274,2]
[403963840,1769697039961,-2538.87,0.00012329,2]
[403963842,1769697039971,-300.0,0.000125,2]
[403963843,1769697039980,-274.54,0.000125,2]
[403963844,1769697039990,-333.41284785,0.00012539,2]
[403963845,1769697039999,-587.0,0.00012612,2]
[403963846,1769697040008,-2351.0,0.00012623,2]
[403963848,1769697040017,-257.42669523,0.00012626,2]
[403963849,1769697040027,-500.0,0.00012626,2]
[403963850,1769697040035,-150.0,0.00012626,2]
[403963851,1769697040044,-150.0,0.00012626,2]
[403963852,1769697040056,-150.0,0.00012626,2]
[403963853,1769697040066,-150.0,0.00012626,2]
[403963854,1769697040075,-150.0,0.00012626,2]
[403963855,1769697040085,-150.0,0.00012626,2]
[403963856,1769697040094,-150.0,0.00012626,2]
[403963857,1769697040104,-152.93513985,0.00012626,2]
[403963858,1769697040113,-150.0,0.00012626,2]
[403963859,1769697040123,-150.02158472,0.00012626,2]
[403963860,1769697040132,-150.0,0.00012626,2]
[403963861,1769697040141,-150.0,0.00012626,2]
[403963862,1769697040150,-500.0,0.00012626,2]
[403963863,1769697040160,-150.0,0.00012626,2]
[403963864,1769697040169,-500.0,0.00012763,2]
[403963865,1769697040178,-150.0,0.00012763,2]
[403963866,1769697040187,-150.0,0.00012763,2]
[403963867,1769697040196,-150.0,0.00012763,2]
[403963868,1769697040204,-150.0,0.00012763,2]
[403963869,1769697040214,-150.0,0.00012763,2]
[403963870,1769697040223,-150.0,0.00012763,2]
[403963871,1769697040231,-150.0,0.00012763,2]
[403963872,1769697040240,-150.0,0.00012763,2]
[403963873,1769697040249,-500.0,0.00012763,2]
[403963874,1769697040258,-210.95757695,0.00012763,2]
[403963875,1769697040267,-484.11107304,0.00012861,2]
[403963876,1769697040276,-1934.50784785,0.00012861,2]
[403963877,1769697040284,-941.14380991,0.00012861,2]
[403963878,1769697040293,-1526.16027621,0.00012874,2]
[403963879,1769697040304,-606.10404976,0.000129,2]
[403963880,1769697040312,-203.36347291,0.000129,2]